[Event "Titled Tuesday Blitz August 08 Early 2023"]
[White "Materia, Marco"]
[Black "Hirneise, Jens"]
[WhiteFideId "45150451"]
[BlackFideId "24614734"]
[WhiteElo "2733"]
[BlackElo "2501"]
[Result "1-0"]
[Round "2"]
[TimeControl "180+1"]
[Date "2023.08.08"]
[WhiteClock "0:01:04"]
[BlackClock "0:00:34"]
[Board "94"]

1. d4 {[%clk 0:03:00]}  Nf6 {[%clk 0:02:59]} 2. c4 {[%clk 0:03:01]}  e6 {[%clk 0:02:59]} 3. Nf3 {[%clk 0:03:02]}  h6 {[%clk 0:02:59]} 4. g3 {[%clk 0:03:00]}  d5 {[%clk 0:02:59]} 5. Bg2 {[%clk 0:03:00]}  a6 {[%clk 0:02:59]} 6. O-O {[%clk 0:03:00]}  Be7 {[%clk 0:03:00]} 7. Nc3 {[%clk 0:03:00]}  O-O {[%clk 0:03:00]} 8. Qc2 {[%clk 0:02:57]}  Nbd7 {[%clk 0:02:57]} 9. b3 {[%clk 0:02:50]}  c6 {[%clk 0:02:48]} 10. e4 {[%clk 0:02:47]}  Nxe4 {[%clk 0:02:45]} 11. Nxe4 {[%clk 0:02:47]}  dxe4 {[%clk 0:02:46]} 12. Qxe4 {[%clk 0:02:48]}  Nf6 {[%clk 0:02:47]} 13. Qe2 {[%clk 0:02:47]}  c5 {[%clk 0:02:47]} 14. Rd1 {[%clk 0:02:45]}  cxd4 {[%clk 0:02:46]} 15. Nxd4 {[%clk 0:02:43]}  Qb6 {[%clk 0:02:45]} 16. Be3 {[%clk 0:02:42]}  Bc5 {[%clk 0:02:44]} 17. Rab1 {[%clk 0:02:37]}  Qc7 {[%clk 0:02:39]} 18. b4 {[%clk 0:02:36]}  Bd6 {[%clk 0:02:35]} 19. c5 {[%clk 0:02:36]}  Be5 {[%clk 0:02:35]} 20. Nf3 {[%clk 0:02:34]}  Nd5 {[%clk 0:02:28]} 21. Nxe5 {[%clk 0:02:12]}  Qxe5 {[%clk 0:02:23]} 22. Qd2 {[%clk 0:02:09]}  Nxe3 {[%clk 0:02:21]} 23. Qxe3 {[%clk 0:02:08]}  Qc7 {[%clk 0:02:11]} 24. Rd6 {[%clk 0:02:07]}  a5 {[%clk 0:02:07]} 25. b5 {[%clk 0:02:05]}  Rb8 {[%clk 0:02:06]} 26. b6 {[%clk 0:02:04]}  Qe7 {[%clk 0:02:06]} 27. Rbd1 {[%clk 0:02:04]}  Qf6 {[%clk 0:01:58]} 28. h4 {[%clk 0:02:03]}  h5 {[%clk 0:01:52]} 29. R1d4 {[%clk 0:01:57]}  g6 {[%clk 0:01:44]} 30. Kh2 {[%clk 0:01:47]}  Ra8 {[%clk 0:01:30]} 31. a4 {[%clk 0:01:38]}  Qf5 {[%clk 0:01:27]} 32. Rf4 {[%clk 0:01:33]}  Qc2 {[%clk 0:01:23]} 33. Be4 {[%clk 0:01:31]}  Qb2 {[%clk 0:01:22]} 34. Qf3 {[%clk 0:01:28]}  Qg7 {[%clk 0:01:16]} 35. Rf6 {[%clk 0:01:26]}  Rb8 {[%clk 0:01:04]} 36. Qf4 {[%clk 0:01:25]}  Ra8 {[%clk 0:00:58]} 37. Qg5 {[%clk 0:01:19]}  Kh7 {[%clk 0:00:51]} 38. Qxh5+ {[%clk 0:01:18]}  Qh6 {[%clk 0:00:52]} 39. Qxh6+ {[%clk 0:01:13]}  Kxh6 {[%clk 0:00:52]} 40. g4 {[%clk 0:01:13]}  Kg7 {[%clk 0:00:50]} 41. g5 {[%clk 0:01:13]}  e5 {[%clk 0:00:49]} 42. Kg3 {[%clk 0:01:13]}  Be6 {[%clk 0:00:49]} 43. Bxb7 {[%clk 0:01:12]}  Rad8 {[%clk 0:00:45]} 44. Rfxe6 {[%clk 0:01:04]}  fxe6 {[%clk 0:00:44]} 45. Rxd8 {[%clk 0:01:04]}  Rxd8 {[%clk 0:00:43]} 46. c6 {[%clk 0:01:05]}  Rd3+ {[%clk 0:00:34]} 47. Kg2 {[%clk 0:01:04]} 1-0


[Site "https://www.chess.com"]

[Event "Titled Tuesday Blitz August 08 Early 2023"]
[White "Brunner, Nicolas"]
[Black "Fiorito, Joaquin"]
[WhiteFideId "620246"]
[BlackFideId "180173"]
[WhiteElo "2492"]
[BlackElo "2732"]
[Result "0-1"]
[Round "2"]
[TimeControl "180+1"]
[Date "2023.08.08"]
[WhiteClock "0:00:00"]
[BlackClock "0:00:11"]
[Board "95"]

1. Nf3 {[%clk 0:03:00]}  d5 {[%clk 0:03:00]} 2. g3 {[%clk 0:03:01]}  Nf6 {[%clk 0:03:00]} 3. Bg2 {[%clk 0:03:01]}  c6 {[%clk 0:03:01]} 4. O-O {[%clk 0:03:01]}  Bg4 {[%clk 0:03:00]} 5. h3 {[%clk 0:03:01]}  Bh5 {[%clk 0:03:00]} 6. d4 {[%clk 0:03:00]}  e6 {[%clk 0:03:00]} 7. c4 {[%clk 0:03:00]}  Nbd7 {[%clk 0:03:00]} 8. cxd5 {[%clk 0:02:58]}  exd5 {[%clk 0:03:00]} 9. Qb3 {[%clk 0:02:58]}  Qb6 {[%clk 0:03:00]} 10. Qe3+ {[%clk 0:02:56]}  Be7 {[%clk 0:02:58]} 11. Nh4 {[%clk 0:02:56]}  Bg6 {[%clk 0:02:51]} 12. Nc3 {[%clk 0:02:46]}  Qd8 {[%clk 0:02:49]} 13. Nxg6 {[%clk 0:02:43]}  hxg6 {[%clk 0:02:50]} 14. Qd3 {[%clk 0:02:43]}  O-O {[%clk 0:02:50]} 15. Bf3 {[%clk 0:02:41]}  Bd6 {[%clk 0:02:50]} 16. Kg2 {[%clk 0:02:41]}  Re8 {[%clk 0:02:50]} 17. h4 {[%clk 0:02:41]}  Qe7 {[%clk 0:02:50]} 18. Rh1 {[%clk 0:02:41]}  Ne4 {[%clk 0:02:49]} 19. h5 {[%clk 0:02:31]}  gxh5 {[%clk 0:02:35]} 20. Rxh5 {[%clk 0:02:30]}  Ndf6 {[%clk 0:02:36]} 21. Rh3 {[%clk 0:02:27]}  Qe6 {[%clk 0:02:35]} 22. Bd2 {[%clk 0:02:19]}  Nxc3 {[%clk 0:02:22]} 23. bxc3 {[%clk 0:02:15]}  Kf8 {[%clk 0:02:18]} 24. Rah1 {[%clk 0:02:05]}  Ke7 {[%clk 0:02:16]} 25. Bg5 {[%clk 0:02:03]}  Kd7 {[%clk 0:02:15]} 26. Bxf6 {[%clk 0:01:55]}  Qxf6 {[%clk 0:02:16]} 27. Rh7 {[%clk 0:01:55]}  Kc7 {[%clk 0:02:16]} 28. c4 {[%clk 0:01:53]}  dxc4 {[%clk 0:02:15]} 29. Qxc4 {[%clk 0:01:53]}  Rad8 {[%clk 0:02:09]} 30. d5 {[%clk 0:01:51]}  c5 {[%clk 0:02:09]} 31. a4 {[%clk 0:01:41]}  Kb8 {[%clk 0:02:04]} 32. a5 {[%clk 0:01:40]}  Qg6 {[%clk 0:01:40]} 33. Qb5 {[%clk 0:01:33]}  a6 {[%clk 0:01:32]} 34. Qb6 {[%clk 0:01:32]}  c4 {[%clk 0:00:47]} 35. Rb1 {[%clk 0:01:29]}  Rd7 {[%clk 0:00:46]} 36. Rhh1 {[%clk 0:01:17]}  Ka8 {[%clk 0:00:22]} 37. Rhc1 {[%clk 0:01:10]}  Rc8 {[%clk 0:00:23]} 38. Qd4 {[%clk 0:00:56]}  Rdc7 {[%clk 0:00:10]} 39. Be4 {[%clk 0:00:41]}  Qf6 {[%clk 0:00:09]} 40. Qxf6 {[%clk 0:00:39]}  gxf6 {[%clk 0:00:10]} 41. Bf5 {[%clk 0:00:39]}  Rd8 {[%clk 0:00:10]} 42. Rb6 {[%clk 0:00:37]}  c3 {[%clk 0:00:10]} 43. Rc2 {[%clk 0:00:36]}  Rc5 {[%clk 0:00:10]} 44. e4 {[%clk 0:00:34]}  Bc7 {[%clk 0:00:11]} 45. Rxf6 {[%clk 0:00:33]}  Bxa5 {[%clk 0:00:11]} 46. Rxf7 {[%clk 0:00:33]}  b5 {[%clk 0:00:12]} 47. Rd7 {[%clk 0:00:11]}  b4 {[%clk 0:00:10]} 48. Rxd8+ {[%clk 0:00:05]}  Bxd8 {[%clk 0:00:11]} 49. e5 {[%clk 0:00:03]}  b3 {[%clk 0:00:11]} 50. Rc1 {[%clk 0:00:03]}  c2 {[%clk 0:00:11]} 51. e6 {[%clk 0:00:01]}  b2 {[%clk 0:00:11]} 52. Rxc2 {[%clk 0:00:00]}  b1=Q {[%clk 0:00:11]} 0-1


[Site "https://www.chess.com"]

[Event "Titled Tuesday Blitz August 08 Early 2023"]
[White "maksimys18"]
[Black "Jaferian, Koosha"]
[BlackFideId "12507440"]
[WhiteElo "2464"]
[BlackElo "2727"]
[Result "1-0"]
[Round "2"]
[TimeControl "180+1"]
[Date "2023.08.08"]
[WhiteClock "0:00:06"]
[BlackClock "0:00:00"]
[Board "96"]

1. d4 {[%clk 0:03:00]}  Nf6 {[%clk 0:03:00]} 2. Nf3 {[%clk 0:03:00]}  d5 {[%clk 0:03:00]} 3. c4 {[%clk 0:03:00]}  e6 {[%clk 0:03:00]} 4. Nc3 {[%clk 0:03:00]}  c5 {[%clk 0:02:59]} 5. Bg5 {[%clk 0:02:59]}  cxd4 {[%clk 0:02:51]} 6. Nxd4 {[%clk 0:02:59]}  dxc4 {[%clk 0:02:50]} 7. e4 {[%clk 0:02:53]}  Be7 {[%clk 0:02:47]} 8. Bxc4 {[%clk 0:02:50]}  O-O {[%clk 0:02:47]} 9. O-O {[%clk 0:02:50]}  a6 {[%clk 0:02:43]} 10. e5 {[%clk 0:02:50]}  Nfd7 {[%clk 0:02:39]} 11. Bxe7 {[%clk 0:02:34]}  Qxe7 {[%clk 0:02:40]} 12. f4 {[%clk 0:02:31]}  Rd8 {[%clk 0:02:31]} 13. Kh1 {[%clk 0:02:23]}  Qc5 {[%clk 0:02:28]} 14. Nxe6 {[%clk 0:02:06]}  fxe6 {[%clk 0:02:26]} 15. Bxe6+ {[%clk 0:02:05]}  Kh8 {[%clk 0:02:26]} 16. Ne4 {[%clk 0:02:04]}  Qe7 {[%clk 0:02:24]} 17. Ng5 {[%clk 0:01:58]}  Nxe5 {[%clk 0:01:27]} 18. Qc2 {[%clk 0:01:13]}  Qxg5 {[%clk 0:00:44]} 19. fxg5 {[%clk 0:01:09]}  Bxe6 {[%clk 0:00:44]} 20. Qe4 {[%clk 0:01:06]}  Nbc6 {[%clk 0:00:44]} 21. g6 {[%clk 0:01:00]}  hxg6 {[%clk 0:00:39]} 22. Rae1 {[%clk 0:00:55]}  Bf5 {[%clk 0:00:33]} 23. Qf4 {[%clk 0:00:43]}  Rd4 {[%clk 0:00:25]} 24. Qg5 {[%clk 0:00:24]}  Rg4 {[%clk 0:00:24]} 25. Qe3 {[%clk 0:00:18]}  Rd8 {[%clk 0:00:20]} 26. h3 {[%clk 0:00:18]}  Rgd4 {[%clk 0:00:19]} 27. Qg3 {[%clk 0:00:17]}  R8d5 {[%clk 0:00:13]} 28. b3 {[%clk 0:00:17]}  Rd2 {[%clk 0:00:12]} 29. Rf4 {[%clk 0:00:16]}  Kg8 {[%clk 0:00:13]} 30. Rf2 {[%clk 0:00:13]}  b5 {[%clk 0:00:06]} 31. Rxd2 {[%clk 0:00:12]}  Rxd2 {[%clk 0:00:07]} 32. Rxe5 {[%clk 0:00:12]}  Nxe5 {[%clk 0:00:07]} 33. Qxe5 {[%clk 0:00:13]}  Rxa2 {[%clk 0:00:07]} 34. b4 {[%clk 0:00:12]}  Rc2 {[%clk 0:00:05]} 35. h4 {[%clk 0:00:11]}  Rf2 {[%clk 0:00:02]} 36. Qd4 {[%clk 0:00:09]}  Re2 {[%clk 0:00:02]} 37. h5 {[%clk 0:00:09]}  gxh5 {[%clk 0:00:02]} 38. Qd5+ {[%clk 0:00:08]}  Be6 {[%clk 0:00:02]} 39. Qxh5 {[%clk 0:00:08]}  Re1+ {[%clk 0:00:02]} 40. Kh2 {[%clk 0:00:09]}  Bf7 {[%clk 0:00:01]} 41. Qc5 {[%clk 0:00:08]}  Re6 {[%clk 0:00:02]} 42. Qc8+ {[%clk 0:00:09]}  Kh7 {[%clk 0:00:02]} 43. g4 {[%clk 0:00:09]}  Re4 {[%clk 0:00:01]} 44. Qc5 {[%clk 0:00:07]}  Bg6 {[%clk 0:00:01]} 45. Kg3 {[%clk 0:00:07]}  Rc4 {[%clk 0:00:01]} 46. Qd6 {[%clk 0:00:07]}  Rc3+ {[%clk 0:00:02]} 47. Kh4 {[%clk 0:00:07]}  Rc4 {[%clk 0:00:01]} 48. Kg5 {[%clk 0:00:07]}  Bf7 {[%clk 0:00:02]} 49. Qd3+ {[%clk 0:00:07]}  Kg8 {[%clk 0:00:02]} 50. Qd8+ {[%clk 0:00:07]}  Kh7 {[%clk 0:00:02]} 51. Qe7 {[%clk 0:00:08]}  Bg6 {[%clk 0:00:02]} 52. Qe6 {[%clk 0:00:08]}  Bd3 {[%clk 0:00:01]} 53. Qd5 {[%clk 0:00:07]}  Bc2 {[%clk 0:00:01]} 54. Qd6 {[%clk 0:00:06]}  Be4 {[%clk 0:00:02]} 55. Kh4 {[%clk 0:00:06]}  Bf3 {[%clk 0:00:02]} 56. Qd3+ {[%clk 0:00:05]}  Kg8 {[%clk 0:00:03]} 57. Qxf3 {[%clk 0:00:05]}  Rxb4 {[%clk 0:00:03]} 58. Qa8+ {[%clk 0:00:06]}  Kh7 {[%clk 0:00:04]} 59. Qxa6 {[%clk 0:00:06]}  Rb1 {[%clk 0:00:04]} 60. Qc6 {[%clk 0:00:06]}  Kh8 {[%clk 0:00:00]} 61. Qc8+ {[%clk 0:00:06]} 1-0


[Site "https://www.chess.com"]

[Event "Titled Tuesday Blitz August 08 Early 2023"]
[White "Warchol, Kamil"]
[Black "Suyarov, Mukhammadzokhid"]
[WhiteFideId "21858241"]
[BlackFideId "14210495"]
[WhiteElo "2455"]
[BlackElo "2721"]
[Result "0-1"]
[Round "2"]
[TimeControl "180+1"]
[Date "2023.08.08"]
[WhiteClock "0:01:31"]
[BlackClock "0:02:32"]
[Board "97"]

1. e4 {[%clk 0:03:00]}  e6 {[%clk 0:02:59]} 2. d4 {[%clk 0:02:57]}  d5 {[%clk 0:02:53]} 3. Nd2 {[%clk 0:02:57]}  c5 {[%clk 0:02:50]} 4. Ngf3 {[%clk 0:02:55]}  cxd4 {[%clk 0:02:48]} 5. Nxd4 {[%clk 0:02:54]}  Nc6 {[%clk 0:02:48]} 6. Bb5 {[%clk 0:02:53]}  Bd7 {[%clk 0:02:48]} 7. Bxc6 {[%clk 0:02:52]}  bxc6 {[%clk 0:02:49]} 8. O-O {[%clk 0:02:35]}  Bd6 {[%clk 0:02:48]} 9. N4f3 {[%clk 0:02:31]}  Ne7 {[%clk 0:02:48]} 10. c4 {[%clk 0:02:31]}  O-O {[%clk 0:02:48]} 11. Re1 {[%clk 0:02:31]}  Rb8 {[%clk 0:02:47]} 12. Qc2 {[%clk 0:02:29]}  f6 {[%clk 0:02:45]} 13. Nb3 {[%clk 0:02:19]}  e5 {[%clk 0:02:43]} 14. cxd5 {[%clk 0:02:16]}  cxd5 {[%clk 0:02:44]} 15. exd5 {[%clk 0:02:14]}  Nxd5 {[%clk 0:02:45]} 16. Be3 {[%clk 0:02:11]}  Nxe3 {[%clk 0:02:40]} 17. Rxe3 {[%clk 0:02:09]}  Be6 {[%clk 0:02:39]} 18. Rd1 {[%clk 0:02:03]}  Qb6 {[%clk 0:02:38]} 19. Rc3 {[%clk 0:02:02]}  Rfc8 {[%clk 0:02:34]} 20. Nfd2 {[%clk 0:01:58]}  Bb4 {[%clk 0:02:32]} 21. Rxc8+ {[%clk 0:01:54]}  Rxc8 {[%clk 0:02:33]} 22. Qd3 {[%clk 0:01:54]}  Rd8 {[%clk 0:02:33]} 23. Qe2 {[%clk 0:01:31]}  Qd6 {[%clk 0:02:32]} 0-1


[Site "https://www.chess.com"]

[Event "Titled Tuesday Blitz August 08 Early 2023"]
[White "Jaracz, Pawel"]
[Black "WindWhistler11"]
[WhiteFideId "1102222"]
[WhiteElo "2718"]
[BlackElo "2441"]
[Result "1-0"]
[Round "2"]
[TimeControl "180+1"]
[Date "2023.08.08"]
[WhiteClock "0:00:42"]
[BlackClock "0:00:00"]
[Board "99"]

1. d4 {[%clk 0:02:59]}  Nf6 {[%clk 0:02:59]} 2. c4 {[%clk 0:02:58]}  e6 {[%clk 0:02:59]} 3. Nc3 {[%clk 0:02:58]}  c5 {[%clk 0:02:38]} 4. d5 {[%clk 0:02:57]}  exd5 {[%clk 0:02:38]} 5. cxd5 {[%clk 0:02:57]}  Bd6 {[%clk 0:02:39]} 6. Bg5 {[%clk 0:02:56]}  O-O {[%clk 0:02:38]} 7. Nf3 {[%clk 0:02:56]}  Re8 {[%clk 0:02:39]} 8. Nd2 {[%clk 0:02:55]}  Be5 {[%clk 0:02:22]} 9. Nc4 {[%clk 0:02:47]}  Bxc3+ {[%clk 0:02:11]} 10. bxc3 {[%clk 0:02:47]}  d6 {[%clk 0:02:09]} 11. f3 {[%clk 0:02:43]}  h6 {[%clk 0:02:05]} 12. Bh4 {[%clk 0:02:42]}  b5 {[%clk 0:02:04]} 13. Nb2 {[%clk 0:02:35]}  Nbd7 {[%clk 0:02:00]} 14. e4 {[%clk 0:02:30]}  Qa5 {[%clk 0:01:59]} 15. Qd2 {[%clk 0:02:24]}  Nxe4 {[%clk 0:01:54]} 16. fxe4 {[%clk 0:02:19]}  Rxe4+ {[%clk 0:01:53]} 17. Be2 {[%clk 0:02:18]}  Rxh4 {[%clk 0:01:51]} 18. O-O {[%clk 0:02:19]}  Ne5 {[%clk 0:01:22]} 19. Rf2 {[%clk 0:02:12]}  Bg4 {[%clk 0:01:16]} 20. Rf4 {[%clk 0:02:00]}  Qd8 {[%clk 0:01:00]} 21. Bxb5 {[%clk 0:01:50]}  Rb8 {[%clk 0:00:55]} 22. a4 {[%clk 0:01:47]}  Qg5 {[%clk 0:00:51]} 23. Qf2 {[%clk 0:01:34]}  a6 {[%clk 0:00:46]} 24. g3 {[%clk 0:01:27]}  Rh5 {[%clk 0:00:40]} 25. Bxa6 {[%clk 0:01:24]}  Rb3 {[%clk 0:00:20]} 26. Nd3 {[%clk 0:01:09]}  Rxc3 {[%clk 0:00:17]} 27. Nxe5 {[%clk 0:00:59]}  dxe5 {[%clk 0:00:16]} 28. Rxf7 {[%clk 0:00:59]}  Rc1+ {[%clk 0:00:16]} 29. Rxc1 {[%clk 0:00:59]}  Qxc1+ {[%clk 0:00:17]} 30. Bf1 {[%clk 0:00:59]}  e4 {[%clk 0:00:06]} 31. Qf4 {[%clk 0:00:42]}  Qd1 {[%clk 0:00:03]} 32. Rf8+ {[%clk 0:00:41]}  Kh7 {[%clk 0:00:00]} 33. Qxe4+ {[%clk 0:00:42]} 1-0


[Site "https://www.chess.com"]

[Event "Titled Tuesday Blitz August 08 Early 2023"]
[White "szachmistrz2500"]
[Black "Volkov, Maksim"]
[BlackFideId "54123070"]
[WhiteElo "2437"]
[BlackElo "2717"]
[Result "0-1"]
[Round "2"]
[TimeControl "180+1"]
[Date "2023.08.08"]
[WhiteClock "0:00:00"]
[BlackClock "0:00:30"]
[Board "100"]

1. d4 {[%clk 0:03:00]}  Nf6 {[%clk 0:02:58]} 2. Nf3 {[%clk 0:03:00]}  e6 {[%clk 0:02:58]} 3. c4 {[%clk 0:03:00]}  d5 {[%clk 0:02:57]} 4. Nc3 {[%clk 0:02:59]}  c5 {[%clk 0:02:54]} 5. cxd5 {[%clk 0:02:58]}  cxd4 {[%clk 0:02:54]} 6. Qxd4 {[%clk 0:02:55]}  exd5 {[%clk 0:02:54]} 7. Bg5 {[%clk 0:02:44]}  Be7 {[%clk 0:02:54]} 8. e3 {[%clk 0:02:43]}  O-O {[%clk 0:02:54]} 9. Be2 {[%clk 0:02:37]}  Nc6 {[%clk 0:02:53]} 10. Qa4 {[%clk 0:02:33]}  h6 {[%clk 0:02:52]} 11. Bh4 {[%clk 0:02:33]}  Be6 {[%clk 0:02:52]} 12. O-O {[%clk 0:02:32]}  Qb6 {[%clk 0:02:52]} 13. Qb5 {[%clk 0:02:31]}  Qxb5 {[%clk 0:02:46]} 14. Nxb5 {[%clk 0:02:30]}  g5 {[%clk 0:02:45]} 15. Bg3 {[%clk 0:02:29]}  Ne4 {[%clk 0:02:45]} 16. Rfd1 {[%clk 0:02:20]}  Rfd8 {[%clk 0:02:37]} 17. Nfd4 {[%clk 0:02:13]}  Nxg3 {[%clk 0:02:28]} 18. hxg3 {[%clk 0:02:09]}  Rac8 {[%clk 0:02:26]} 19. Rac1 {[%clk 0:01:54]}  Nxd4 {[%clk 0:02:23]} 20. Nxd4 {[%clk 0:01:53]}  Bf6 {[%clk 0:02:16]} 21. Bd3 {[%clk 0:01:41]}  Rxc1 {[%clk 0:02:09]} 22. Rxc1 {[%clk 0:01:41]}  Rc8 {[%clk 0:02:10]} 23. Rxc8+ {[%clk 0:01:38]}  Bxc8 {[%clk 0:02:11]} 24. Kf1 {[%clk 0:01:35]}  Kf8 {[%clk 0:02:10]} 25. Ke2 {[%clk 0:01:35]}  Ke7 {[%clk 0:02:10]} 26. f4 {[%clk 0:01:33]}  a6 {[%clk 0:02:06]} 27. b3 {[%clk 0:01:32]}  Kd8 {[%clk 0:02:03]} 28. Nf5 {[%clk 0:01:29]}  h5 {[%clk 0:01:58]} 29. Nd4 {[%clk 0:01:27]}  Kc7 {[%clk 0:01:57]} 30. Bh7 {[%clk 0:01:22]}  Bg4+ {[%clk 0:01:51]} 31. Kd3 {[%clk 0:01:21]}  h4 {[%clk 0:01:51]} 32. fxg5 {[%clk 0:01:15]}  Bxg5 {[%clk 0:01:51]} 33. gxh4 {[%clk 0:01:14]}  Bxh4 {[%clk 0:01:51]} 34. Bg8 {[%clk 0:01:07]}  Bh5 {[%clk 0:01:49]} 35. Bh7 {[%clk 0:00:49]}  Kb6 {[%clk 0:01:45]} 36. Bf5 {[%clk 0:00:43]}  f6 {[%clk 0:01:23]} 37. g4 {[%clk 0:00:38]}  Bf7 {[%clk 0:01:14]} 38. Ne2 {[%clk 0:00:35]}  Kc5 {[%clk 0:01:11]} 39. a3 {[%clk 0:00:33]}  a5 {[%clk 0:01:10]} 40. Nf4 {[%clk 0:00:29]}  Kc6 {[%clk 0:01:04]} 41. Ne2 {[%clk 0:00:29]}  Be1 {[%clk 0:01:03]} 42. Nd4+ {[%clk 0:00:29]}  Kb6 {[%clk 0:01:03]} 43. Nc2 {[%clk 0:00:29]}  Bg3 {[%clk 0:01:03]} 44. Nd4 {[%clk 0:00:28]}  Bd6 {[%clk 0:01:03]} 45. Nc2 {[%clk 0:00:26]}  d4 {[%clk 0:01:00]} 46. Nxd4 {[%clk 0:00:22]}  Bxa3 {[%clk 0:01:00]} 47. Be6 {[%clk 0:00:22]}  Be8 {[%clk 0:00:59]} 48. Bc4 {[%clk 0:00:21]}  Bd6 {[%clk 0:00:57]} 49. Ne2 {[%clk 0:00:21]}  Kc5 {[%clk 0:00:56]} 50. Nf4 {[%clk 0:00:19]}  b5 {[%clk 0:00:55]} 51. Bg8 {[%clk 0:00:18]}  Be5 {[%clk 0:00:48]} 52. Ne2 {[%clk 0:00:16]}  Kb4 {[%clk 0:00:48]} 53. Nd4 {[%clk 0:00:16]}  Bg6+ {[%clk 0:00:47]} 54. Kd2 {[%clk 0:00:15]}  Be8 {[%clk 0:00:45]} 55. Nf3 {[%clk 0:00:14]}  Bc3+ {[%clk 0:00:44]} 56. Kd3 {[%clk 0:00:14]}  Bg6+ {[%clk 0:00:44]} 57. e4 {[%clk 0:00:14]}  Bb2 {[%clk 0:00:43]} 58. Nd4 {[%clk 0:00:14]}  Be8 {[%clk 0:00:40]} 59. Be6 {[%clk 0:00:13]}  a4 {[%clk 0:00:34]} 60. Nc2+ {[%clk 0:00:12]}  Kc5 {[%clk 0:00:33]} 61. bxa4 {[%clk 0:00:12]}  bxa4 {[%clk 0:00:33]} 62. Bd5 {[%clk 0:00:11]}  Bb5+ {[%clk 0:00:33]} 63. Kd2 {[%clk 0:00:10]}  a3 {[%clk 0:00:33]} 64. Ne3 {[%clk 0:00:10]}  Bd4 {[%clk 0:00:31]} 65. Nd1 {[%clk 0:00:00]}  Bc4 {[%clk 0:00:30]} 0-1


[Site "https://www.chess.com"]

[Event "Titled Tuesday Blitz August 08 Early 2023"]
[White "Yanchenko, Roman"]
[Black "Kukreja Sankalp"]
[WhiteFideId "4137329"]
[BlackFideId "45027676"]
[WhiteElo "2717"]
[BlackElo "2433"]
[Result "1-0"]
[Round "2"]
[TimeControl "180+1"]
[Date "2023.08.08"]
[WhiteClock "0:00:09"]
[BlackClock "0:00:13"]
[Board "101"]

1. d4 {[%clk 0:03:00]}  d5 {[%clk 0:02:42]} 2. Nf3 {[%clk 0:03:00]}  Nf6 {[%clk 0:02:41]} 3. Bf4 {[%clk 0:02:59]}  Bf5 {[%clk 0:02:38]} 4. e3 {[%clk 0:02:59]}  e6 {[%clk 0:02:37]} 5. Bd3 {[%clk 0:02:59]}  Bxd3 {[%clk 0:02:34]} 6. cxd3 {[%clk 0:02:59]}  Bd6 {[%clk 0:02:33]} 7. Bg3 {[%clk 0:03:00]}  O-O {[%clk 0:02:33]} 8. Nc3 {[%clk 0:02:59]}  c5 {[%clk 0:02:31]} 9. dxc5 {[%clk 0:02:59]}  Bxc5 {[%clk 0:02:30]} 10. O-O {[%clk 0:02:55]}  Nc6 {[%clk 0:02:29]} 11. Rc1 {[%clk 0:02:54]}  Bd6 {[%clk 0:02:28]} 12. Bh4 {[%clk 0:02:49]}  a6 {[%clk 0:02:23]} 13. a3 {[%clk 0:02:47]}  Be7 {[%clk 0:02:24]} 14. e4 {[%clk 0:02:27]}  dxe4 {[%clk 0:02:10]} 15. dxe4 {[%clk 0:02:27]}  Qc7 {[%clk 0:02:10]} 16. Bg3 {[%clk 0:02:27]}  Qa5 {[%clk 0:02:09]} 17. Qb3 {[%clk 0:02:22]}  b5 {[%clk 0:02:03]} 18. Nxb5 {[%clk 0:02:21]}  axb5 {[%clk 0:01:44]} 19. Rxc6 {[%clk 0:02:21]}  Nxe4 {[%clk 0:01:43]} 20. Bc7 {[%clk 0:02:20]}  Qa7 {[%clk 0:01:37]} 21. Qxb5 {[%clk 0:02:14]}  Rfc8 {[%clk 0:01:36]} 22. Bg3 {[%clk 0:02:12]}  Nxg3 {[%clk 0:01:34]} 23. hxg3 {[%clk 0:01:59]}  Rcb8 {[%clk 0:01:34]} 24. Qe2 {[%clk 0:01:59]}  Bf6 {[%clk 0:01:33]} 25. Rc2 {[%clk 0:01:58]}  Rb3 {[%clk 0:01:31]} 26. Rfc1 {[%clk 0:01:56]}  g6 {[%clk 0:01:28]} 27. Nd2 {[%clk 0:01:14]}  Rxb2 {[%clk 0:01:21]} 28. Ne4 {[%clk 0:01:15]}  Rxc2 {[%clk 0:01:19]} 29. Nxf6+ {[%clk 0:01:15]}  Kg7 {[%clk 0:01:20]} 30. Nh5+ {[%clk 0:01:15]}  gxh5 {[%clk 0:01:18]} 31. Rxc2 {[%clk 0:01:15]}  Qxa3 {[%clk 0:01:18]} 32. Qxh5 {[%clk 0:01:16]}  Qa1+ {[%clk 0:01:16]} 33. Kh2 {[%clk 0:01:16]}  Qf6 {[%clk 0:01:17]} 34. Rc4 {[%clk 0:01:13]}  Kh8 {[%clk 0:01:02]} 35. Rf4 {[%clk 0:01:08]}  Qg6 {[%clk 0:00:59]} 36. Qe5+ {[%clk 0:01:08]}  Qg7 {[%clk 0:00:58]} 37. Qe4 {[%clk 0:01:07]}  Ra5 {[%clk 0:00:53]} 38. Qb1 {[%clk 0:00:40]}  Rh5+ {[%clk 0:00:52]} 39. Kg1 {[%clk 0:00:40]}  Ra5 {[%clk 0:00:36]} 40. Qb8+ {[%clk 0:00:19]}  Qg8 {[%clk 0:00:36]} 41. Qb2+ {[%clk 0:00:19]}  Qg7 {[%clk 0:00:35]} 42. Rd4 {[%clk 0:00:19]}  Qf6 {[%clk 0:00:16]} 43. Qb8+ {[%clk 0:00:16]}  Kg7 {[%clk 0:00:16]} 44. Rg4+ {[%clk 0:00:16]}  Kh6 {[%clk 0:00:16]} 45. Qf8+ {[%clk 0:00:16]}  Kh5 {[%clk 0:00:16]} 46. Rh4+ {[%clk 0:00:16]}  Kg5 {[%clk 0:00:17]} 47. Qg8+ {[%clk 0:00:13]}  Qg6 {[%clk 0:00:15]} 48. Qd8+ {[%clk 0:00:08]}  Qf6 {[%clk 0:00:15]} 49. Qxa5+ {[%clk 0:00:09]}  Kg6 {[%clk 0:00:15]} 50. Qh5+ {[%clk 0:00:08]}  Kg7 {[%clk 0:00:13]} 51. Qxh7+ {[%clk 0:00:09]} 1-0


[Site "https://www.chess.com"]

[Event "Titled Tuesday Blitz August 08 Early 2023"]
[White "Luong Phuong Hanh"]
[Black "Korchmar, Vasiliy"]
[WhiteFideId "12401013"]
[BlackFideId "24131750"]
[WhiteElo "2393"]
[BlackElo "2702"]
[Result "0-1"]
[Round "2"]
[TimeControl "180+1"]
[Date "2023.08.08"]
[WhiteClock "0:00:00"]
[BlackClock "0:00:54"]
[Board "106"]

1. d4 {[%clk 0:00:26]}  d5 {[%clk 0:02:58]} 2. Nf3 {[%clk 0:00:26]}  Nf6 {[%clk 0:02:59]} 3. c4 {[%clk 0:00:27]}  c6 {[%clk 0:02:59]} 4. Qc2 {[%clk 0:00:26]}  dxc4 {[%clk 0:02:55]} 5. Qxc4 {[%clk 0:00:25]}  Bg4 {[%clk 0:02:56]} 6. Nc3 {[%clk 0:00:23]}  Nbd7 {[%clk 0:02:54]} 7. e4 {[%clk 0:00:23]}  Bxf3 {[%clk 0:02:53]} 8. gxf3 {[%clk 0:00:23]}  e5 {[%clk 0:02:54]} 9. Be3 {[%clk 0:00:24]}  Bd6 {[%clk 0:02:47]} 10. O-O-O {[%clk 0:00:24]}  O-O {[%clk 0:02:47]} 11. Be2 {[%clk 0:00:23]}  Qe7 {[%clk 0:02:44]} 12. Rhg1 {[%clk 0:00:22]}  b5 {[%clk 0:02:42]} 13. Qd3 {[%clk 0:00:20]}  Kh8 {[%clk 0:02:33]} 14. d5 {[%clk 0:00:15]}  b4 {[%clk 0:02:30]} 15. dxc6 {[%clk 0:00:15]}  bxc3 {[%clk 0:02:29]} 16. Qxd6 {[%clk 0:00:15]}  Qd8 {[%clk 0:02:13]} 17. cxd7 {[%clk 0:00:13]}  Qa5 {[%clk 0:02:14]} 18. b3 {[%clk 0:00:12]}  Qxa2 {[%clk 0:02:13]} 19. Rdf1 {[%clk 0:00:06]}  Qb2+ {[%clk 0:01:49]} 20. Kd1 {[%clk 0:00:05]}  c2+ {[%clk 0:01:50]} 21. Ke1 {[%clk 0:00:05]}  Qc3+ {[%clk 0:01:50]} 22. Bd2 {[%clk 0:00:03]}  c1=Q+ {[%clk 0:01:51]} 23. Bd1 {[%clk 0:00:04]}  Qxd1+ {[%clk 0:01:35]} 24. Kxd1 {[%clk 0:00:04]}  Qxf3+ {[%clk 0:01:35]} 25. Ke1 {[%clk 0:00:04]}  Nxe4 {[%clk 0:01:02]} 26. Qxe5 {[%clk 0:00:03]}  f6 {[%clk 0:01:02]} 27. Qd4 {[%clk 0:00:02]}  Rad8 {[%clk 0:00:58]} 28. Be3 {[%clk 0:00:00]}  Qf5 {[%clk 0:00:54]} 0-1


[Site "https://www.chess.com"]